fUST/lending_fUST_20250914
["ID","MTS","AMOUNT","RATE_DAILY","PERIOD"]
[385337733,1757784659655,-480.0,0.00025205,3]
[385337734,1757784659664,-784.66,0.00025205,3]
[385337735,1757784659674,-480.0,0.00025205,3]
[385337736,1757784659684,-230.12,0.00025205,3]
[385337737,1757784659693,-480.0,0.00025205,3]
[385337738,1757784659703,-480.0,0.00025205,3]
[385337739,1757784659712,-480.0,0.00025205,3]
[385337740,1757784659722,-906.0,0.00025205,3]
[385337741,1757784659731,-480.0,0.00025205,3]
[385337742,1757784659741,-480.0,0.00025205,3]
[385337743,1757784659751,-766.19,0.00025205,3]
[385337744,1757784659761,-480.0,0.00025205,3]
[385337745,1757784659770,-480.0,0.00025205,3]
[385337746,1757784659779,-2482.55,0.00025205,3]
[385337747,1757784659788,-5735.2,0.00025205,3]
[385337748,1757784659798,-480.0,0.00025205,3]
[385337749,1757784659807,-480.0,0.00025205,3]
[385337750,1757784659817,-480.0,0.00025205,3]
[385337751,1757784659826,-480.0,0.00025205,3]
[385337752,1757784659836,-976.23,0.00025205,3]
[385337753,1757784659845,-480.0,0.00025205,3]
[385337754,1757784659854,-480.0,0.00025205,3]
[385337755,1757784659863,-480.0,0.00025205,3]
[385337756,1757784659872,-801.98,0.00025205,3]
[385337757,1757784659881,-480.0,0.00025205,3]
[385337758,1757784659890,-3181.48,0.00025205,3]
[385337759,1757784659903,-480.0,0.00025205,3]
[385337760,1757784659914,-480.0,0.00025205,3]
[385337761,1757784659923,-480.0,0.00025205,3]
[385337762,1757784659933,-3209.76,0.00025205,3]
[385337763,1757784659942,-480.0,0.00025205,3]
[385337764,1757784659951,-3616.26,0.00025205,3]
[385337765,1757784659961,-749.82,0.00025205,3]
[385337766,1757784659969,-985.55,0.00025205,3]
[385337767,1757784659978,-1529.56,0.00025205,3]
[385337768,1757784659989,-480.0,0.00025205,3]
[385337769,1757784659998,-480.0,0.00025205,3]
[385337770,1757784660007,-480.0,0.00025205,3]
[385337771,1757784660017,-745.92,0.00025205,3]
[385337772,1757784660027,-1109.03,0.00025205,3]
[385337773,1757784660036,-480.0,0.00025205,3]
[385337774,1757784660046,-1259.35,0.00025205,3]
[385337775,1757784660056,-480.0,0.00025205,3]
[385337776,1757784660066,-480.0,0.00025205,3]
[385337777,1757784660075,-480.0,0.00025205,3]
[385337778,1757784660085,-332.58,0.00025205,3]
[385337779,1757784660094,-1997.09,0.00025205,3]
[385337780,1757784660104,-1039.68,0.00025205,3]
[385337781,1757784660113,-480.0,0.00025205,3]
[385337782,1757784660123,-480.0,0.00025205,3]
[385337783,1757784660132,-914.34,0.00025205,3]
[385337784,1757784660141,-480.0,0.00025205,3]
[385337785,1757784660151,-918.15,0.00025205,3]
[385337786,1757784660160,-480.0,0.00025205,3]
[385337787,1757784660169,-480.0,0.00025205,3]
[385337788,1757784660178,-480.0,0.00025205,3]
[385337789,1757784660187,-480.0,0.00025205,3]
[385337790,1757784660196,-691.66,0.00025205,3]
[385337791,1757784660206,-782.57,0.00025205,3]
[385337792,1757784660215,-480.0,0.00025205,3]
[385337793,1757784660224,-1692.57,0.00025205,3]
[385337794,1757784660234,-480.0,0.00025205,3]
[385337795,1757784660243,-480.0,0.00025205,3]
[385337796,1757784660252,-480.0,0.00025205,3]
[385337797,1757784660262,-491.13,0.00025205,3]
[385337798,1757784660271,-480.0,0.00025205,3]
[385337799,1757784660281,-480.0,0.00025205,3]
[385337800,1757784660290,-2928.66,0.00025205,3]
[385337801,1757784660299,-480.0,0.00025205,3]
[385337802,1757784660309,-480.0,0.00025205,3]
[385337803,1757784660318,-480.0,0.00025205,3]
[385337804,1757784660329,-480.0,0.00025205,3]
[385337805,1757784660338,-739.76,0.00025205,3]
[385337806,1757784660348,-480.0,0.00025205,3]
[385337807,1757784660357,-703.37,0.00025205,3]
[385337808,1757784660367,-480.0,0.00025205,3]
[385337809,1757784660376,-480.0,0.00025205,3]
[385337810,1757784660385,-734.71,0.00025205,3]
[385337811,1757784660395,-2535.32,0.00025205,3]
[385337812,1757784660404,-12427.82,0.00025205,3]
[385337813,1757784660413,-480.0,0.00025205,3]
[385337814,1757784660422,-480.0,0.00025205,3]
[385337815,1757784660432,-480.0,0.00025205,3]
[385337816,1757784660442,-8887.01,0.00025205,3]
[385337817,1757784660452,-883.08,0.00025205,3]
[385337818,1757784660462,-480.0,0.00025205,3]
[385337819,1757784660471,-776.87,0.00025205,3]
[385337820,1757784660480,-518.52,0.00025205,3]
[385337821,1757784660489,-641.35,0.00025205,3]
[385337822,1757784660501,-1110.66,0.00025205,3]
[385337823,1757784660511,-5775.0,0.00025205,3]
[385337824,1757784660520,-480.0,0.00025205,3]
[385337825,1757784660529,-999.54,0.00025205,3]
[385337826,1757784660538,-480.0,0.00025205,3]
[385337827,1757784660547,-2448.94,0.00025205,3]
[385337828,1757784660556,-480.0,0.00025205,3]
[385337829,1757784660565,-595.92,0.00025205,3]
[385337830,1757784660575,-711.92,0.00025205,3]
[385337831,1757784660586,-480.0,0.00025205,3]
[385337832,1757784660595,-2079.15,0.00025205,3]
[385337833,1757784660605,-716.9,0.00025205,3]
[385337834,1757784660615,-680.55,0.00025205,3]
[385337835,1757784660625,-2057.52,0.00025205,3]
[385337836,1757784660635,-509.1,0.00025205,3]
[385337837,1757784660644,-1722.0,0.00025205,3]
[385337838,1757784660654,-1005.55,0.00025205,3]
[385337839,1757784660663,-480.0,0.00025205,3]
[385337840,1757784660673,-480.0,0.00025205,3]
[385337841,1757784660682,-480.0,0.00025205,3]
[385337842,1757784660691,-728.93,0.00025205,3]
[385337843,1757784660701,-480.0,0.00025205,3]
[385337844,1757784660711,-1072.93,0.00025205,3]
[385337845,1757784660720,-480.0,0.00025205,3]
[385337846,1757784660730,-480.0,0.00025205,3]
[385337847,1757784660739,-872.34,0.00025205,3]
[385337848,1757784660747,-480.0,0.00025205,3]
[385337849,1757784660756,-1840.85,0.00025205,3]
[385337850,1757784660766,-480.0,0.00025205,3]
[385337851,1757784660775,-480.0,0.00025205,3]
[385337852,1757784660785,-480.0,0.00025205,3]
[385337853,1757784660794,-480.0,0.00025205,3]
[385337854,1757784660803,-1340.83,0.00025205,3]
[385337855,1757784660813,-480.0,0.00025205,3]
[385337856,1757784660823,-1088.54,0.00025205,3]
[385337857,1757784660834,-480.0,0.00025205,3]
[385337858,1757784660843,-797.91,0.00025205,3]
[385337859,1757784660853,-500.0,0.00025206,2]
[385337860,1757784660862,-1000.0,0.00025221,2]
[385337861,1757784660872,-502.63720479,0.00025221,2]
[385337862,1757784660882,-1000.0,0.00025221,2]
[385337863,1757784660892,-500.4457902,0.00025221,2]
[385337864,1757784660905,-500.0,0.00025221,2]
[385337865,1757784660915,-168.0,0.00025249,2]
[385337866,1757784660923,-168.0,0.00025253,2]
[385337867,1757784660933,-168.0,0.00025272,2]
[385337868,1757784660942,-168.0,0.00025335,2]
[385337869,1757784660952,-433.74342441,0.00025353,2]
[385337870,1757784660961,-889.2,0.00025365,3]
[385337871,1757784660972,-444.6,0.00025365,3]
[385337872,1757784660981,-4402.86835635,0.00025379,2]
[385337873,1757784660990,-1000.0,0.00025421,2]
[385337874,1757784660999,-500.0,0.00025421,2]
[385337875,1757784661009,-1000.0,0.00025421,2]
[385337876,1757784661019,-502.44212702,0.00025421,2]
[385337877,1757784661028,-1000.0,0.00025421,2]
[385337878,1757784661039,-500.95138209,0.00025421,2]
[385337879,1757784661048,-1000.0,0.00025421,2]
[385337880,1757784661057,-1000.0,0.00025421,2]
[385337881,1757784661067,-1000.0,0.00025421,2]
[385337882,1757784661077,-494.80133484,0.00025421,2]
[385337883,1757784661086,-1000.0,0.00025421,2]
[385337884,1757784661096,-500.0,0.00025421,2]
[385337885,1757784661105,-1000.0,0.00025421,2]
[385337886,1757784661115,-501.35185666,0.00025421,2]
[385337887,1757784661124,-1002.26971816,0.00025421,2]
[385337888,1757784661133,-1000.0,0.00025421,2]
[385337889,1757784661142,-1000.54108542,0.00025421,2]
[385337890,1757784661152,-1000.0,0.00025421,2]
[385337891,1757784661161,-1000.0,0.00025421,2]
[385337892,1757784661170,-1000.0,0.00025421,2]
[385337893,1757784661179,-256.31117903,0.00025421,2]
[385337894,1757784661189,-1000.0,0.00025421,2]
[385337895,1757784661198,-1000.0,0.00025421,2]
[385337896,1757784661208,-500.0,0.00025421,2]
[385337897,1757784661217,-1000.0,0.00025421,2]
[385337898,1757784661225,-500.0,0.00025421,2]
[385337899,1757784661234,-1000.0,0.00025421,2]
[385337900,1757784661243,-500.0,0.00025421,2]
[385337901,1757784661252,-501.6536545,0.00025421,2]
[385337902,1757784661260,-500.0,0.00025421,2]
[385337903,1757784661268,-1000.0,0.00025421,2]
[385337904,1757784661278,-1018.68054904,0.00025421,2]
[385337905,1757784661287,-1001.78807446,0.00025421,2]
[385337906,1757784661296,-1000.0,0.00025421,2]
[385337907,1757784661305,-168.0,0.00025421,2]
[385337908,1757784661315,-168.0,0.0002545,2]
[385337909,1757784661324,-500.0,0.00025479,5]
[385337910,1757784661335,-500.0,0.00025479,5]
[385337911,1757784661344,-500.0,0.00025479,5]
[385337912,1757784661354,-582.0,0.00025479,3]
[385337913,1757784661363,-244.24859823,0.00025479,3]
[385337914,1757784661373,-186.0,0.00025479,3]
[385337915,1757784661382,-480.0,0.00025479,3]
[385337916,1757784661391,-657.11,0.00025479,3]
[385337917,1757784661400,-424.53,0.00025479,3]
[385337918,1757784661410,-480.0,0.00025479,3]
[385337919,1757784661419,-480.0,0.00025479,3]
[385337920,1757784661429,-480.0,0.00025479,3]
[385337921,1757784661438,-491.3623074,0.00025479,3]
[385337922,1757784661447,-480.0,0.00025479,3]
[385337923,1757784661456,-390.75,0.00025479,3]
[385337924,1757784661466,-480.0,0.00025479,3]
[385337925,1757784661475,-480.0,0.00025479,3]
[385337926,1757784661485,-480.0,0.00025479,3]
[385337927,1757784661494,-522.82,0.00025479,3]
[385337928,1757784661503,-480.0,0.00025479,3]
[385337929,1757784661512,-480.0,0.00025479,3]
[385337930,1757784661521,-480.0,0.00025479,3]
[385337931,1757784661530,-480.0,0.00025479,3]
[385337932,1757784661539,-456.44694732,0.00025479,3]
[385337933,1757784661548,-480.0,0.00025479,3]
[385337934,1757784661559,-480.0,0.00025479,3]
[385337935,1757784661568,-480.0,0.00025479,3]
[385337936,1757784661579,-480.0,0.00025479,3]
[385337937,1757784661587,-480.0,0.00025479,3]
[385337938,1757784661597,-480.0,0.00025479,3]
[385337939,1757784661606,-478.56717567,0.00025479,3]
[385337940,1757784661615,-548.32520968,0.00025479,3]
[385337941,1757784661624,-480.0,0.00025479,3]
[385337942,1757784661633,-705.76,0.00025479,3]
[385337943,1757784661642,-602.39,0.00025479,3]
[385337944,1757784661652,-480.0,0.00025479,3]
[385337945,1757784661661,-480.0,0.00025479,3]
[385337946,1757784661672,-433.54604035,0.00025479,3]
[385337947,1757784661681,-249.53279314,0.00025479,3]
[385337948,1757784661690,-346.32254773,0.00025479,3]
[385337949,1757784661699,-235.53152012,0.00025479,3]
[385337950,1757784661709,-480.0,0.00025479,3]
[385337951,1757784661719,-480.0,0.00025479,3]
[385337952,1757784661729,-480.0,0.00025479,3]
[385337953,1757784661740,-480.0,0.00025479,3]
[385337954,1757784661750,-251.51526958,0.00025479,3]
[385337955,1757784661760,-480.0,0.00025479,3]
[385337956,1757784661770,-480.0,0.00025479,3]
[385337957,1757784661782,-480.0,0.00025479,3]
[385337958,1757784661792,-480.0,0.00025479,3]
[385337959,1757784661802,-480.0,0.00025479,3]
[385337960,1757784661812,-480.0,0.00025479,3]
[385337961,1757784661821,-238.33,0.00025479,3]
[385337962,1757784661832,-480.0,0.00025479,3]
[385337963,1757784661842,-480.0,0.00025479,3]
[385337964,1757784661852,-443.51464812,0.00025479,3]
[385337965,1757784661862,-1238.97,0.00025479,3]
[385337966,1757784661871,-480.0,0.00025479,3]
[385337967,1757784661881,-480.0,0.00025479,3]
[385337968,1757784661891,-572.86,0.00025479,3]
[385337969,1757784661911,-200.30727471,0.00025479,3]
[385337970,1757784661921,-480.0,0.00025479,3]
[385337971,1757784661930,-480.0,0.00025479,3]
[385337972,1757784661939,-909.21,0.00025479,3]
[385337973,1757784661948,-480.0,0.00025479,3]
[385337974,1757784661958,-750.5,0.00025479,3]
[385337975,1757784661967,-1047.05,0.00025479,3]
[385337976,1757784661976,-480.0,0.00025479,3]
[385337977,1757784661986,-480.0,0.00025479,3]
[385337978,1757784661995,-666.36,0.00025479,3]
[385337979,1757784662004,-480.0,0.00025479,3]
[385337980,1757784662013,-863.23,0.00025479,3]
[385337981,1757784662022,-480.0,0.00025479,3]
[385337982,1757784662032,-480.0,0.00025479,3]
[385337983,1757784662041,-480.0,0.00025479,3]
[385337984,1757784662052,-480.0,0.00025479,3]
[385337985,1757784662063,-480.0,0.00025479,3]
[385337986,1757784662202,-480.0,0.00025479,3]
[385337987,1757784662212,-480.0,0.00025479,3]
[385337988,1757784662222,-480.0,0.00025479,3]
[385337989,1757784662231,-714.11,0.00025479,3]
[385337990,1757784662241,-480.0,0.00025479,3]
[385337991,1757784662251,-480.0,0.00025479,3]
[385337992,1757784662260,-480.0,0.00025479,3]
[385337993,1757784662269,-480.0,0.00025479,3]
[385337994,1757784662278,-480.0,0.00025479,3]
[385337995,1757784662287,-480.0,0.00025479,3]
[385337996,1757784662297,-480.0,0.00025479,3]
[385337997,1757784662306,-480.0,0.00025479,3]
[385337998,1757784662315,-480.0,0.00025479,3]
[385337999,1757784662325,-480.0,0.00025479,3]
[385338000,1757784662335,-480.0,0.00025479,3]
[385338001,1757784662344,-488.5416219,0.00025479,3]
[385338002,1757784662354,-480.0,0.00025479,3]
[385338003,1757784662363,-480.0,0.00025479,3]
[385338004,1757784662372,-480.0,0.00025479,3]
[385338005,1757784662381,-480.0,0.00025479,3]
[385338006,1757784662390,-480.0,0.00025479,3]
[385338007,1757784662400,-480.0,0.00025479,3]
[385338008,1757784662409,-480.0,0.00025479,3]
[385338009,1757784662419,-480.0,0.00025479,3]
[385338010,1757784662429,-480.0,0.00025479,3]
[385338011,1757784662438,-480.0,0.00025479,3]
[385338012,1757784662448,-480.0,0.00025479,3]
[385338013,1757784662458,-1194.44,0.00025479,3]
[385338014,1757784662467,-480.0,0.00025479,3]
[385338015,1757784662477,-480.0,0.00025479,3]
[385338016,1757784662487,-480.0,0.00025479,3]
[385338017,1757784662497,-806.61,0.00025479,3]
[385338018,1757784662506,-963.48,0.00025479,3]
[385338019,1757784662515,-480.0,0.00025479,3]
[385338020,1757784662525,-480.0,0.00025479,3]
[385338021,1757784662534,-480.0,0.00025479,3]
[385338022,1757784662544,-587.53,0.00025479,3]
[385338023,1757784662553,-480.0,0.00025479,3]
[385338024,1757784662563,-480.0,0.00025479,3]
[385338025,1757784662573,-1474.24,0.00025479,3]
[385338026,1757784662583,-480.0,0.00025479,3]
[385338027,1757784662593,-784.66,0.00025479,3]
[385338028,1757784662602,-480.0,0.00025479,3]
[385338029,1757784662611,-480.0,0.00025479,3]
[385338030,1757784662620,-480.0,0.00025479,3]
[385338031,1757784662629,-480.0,0.00025479,3]
[385338032,1757784662639,-906.0,0.00025479,3]
[385338033,1757784662647,-480.0,0.00025479,3]
[385338034,1757784662656,-480.0,0.00025479,3]
[385338035,1757784662665,-766.19,0.00025479,3]
[385338036,1757784662675,-480.0,0.00025479,3]
[385338037,1757784662684,-2482.55,0.00025479,3]
[385338038,1757784662693,-5735.2,0.00025479,3]
[385338039,1757784662702,-480.0,0.00025479,3]
[385338040,1757784662711,-480.0,0.00025479,3]
[385338041,1757784662720,-155.69032148,0.00025479,3]
[385338042,1757784662729,-480.0,0.00025479,3]
[385338043,1757784662738,-976.23,0.00025479,3]
[385338044,1757784662747,-480.0,0.00025479,3]
[385338045,1757784662756,-480.0,0.00025479,3]
[385338046,1757784662764,-801.98,0.00025479,3]
[385338047,1757784662774,-480.0,0.00025479,3]
[385338048,1757784662783,-3181.48,0.00025479,3]
[385338049,1757784662792,-480.0,0.00025479,3]
[385338050,1757784662801,-480.0,0.00025479,3]
[385338051,1757784662811,-480.0,0.00025479,3]
[385338052,1757784662821,-3209.76,0.00025479,3]
[385338053,1757784662831,-480.0,0.00025479,3]
[385338054,1757784662840,-3616.26,0.00025479,3]
[385338055,1757784662850,-749.82,0.00025479,3]
[385338056,1757784662860,-985.55,0.00025479,3]
[385338057,1757784662870,-1529.56,0.00025479,3]
[385338058,1757784662880,-480.0,0.00025479,3]
[385338059,1757784662889,-238.65494765,0.00025479,3]
[385338060,1757784662902,-745.92,0.00025479,3]
[385338061,1757784662911,-1109.03,0.00025479,3]
[385338062,1757784662920,-480.0,0.00025479,3]
[385338063,1757784662929,-1259.35,0.00025479,3]
[385338064,1757784662939,-480.0,0.00025479,3]
[385338065,1757784662948,-307.37613514,0.00025479,3]
[385338066,1757784662957,-480.0,0.00025479,3]
[385338067,1757784662966,-1997.09,0.00025479,3]
[385338068,1757784662976,-1039.68,0.00025479,3]
[385338069,1757784662985,-480.0,0.00025479,3]
[385338070,1757784662994,-480.0,0.00025479,3]
[385338071,1757784663003,-914.34,0.00025479,3]
[385338072,1757784663013,-480.0,0.00025479,3]
[385338073,1757784663023,-918.15,0.00025479,3]
[385338074,1757784663033,-480.0,0.00025479,3]
[385338075,1757784663043,-480.0,0.00025479,3]
[385338076,1757784663054,-480.0,0.00025479,3]
[385338077,1757784663064,-480.0,0.00025479,3]
[385338078,1757784663074,-691.66,0.00025479,3]
[385338079,1757784663084,-782.57,0.00025479,3]
[385338080,1757784663094,-480.0,0.00025479,3]
[385338081,1757784663104,-1692.57,0.00025479,3]
[385338082,1757784663113,-480.0,0.00025479,3]
[385338083,1757784663123,-480.0,0.00025479,3]
[385338084,1757784663133,-491.13,0.00025479,3]
[385338085,1757784663143,-359.67632916,0.00025479,3]
[385338086,1757784663152,-480.0,0.00025479,3]
[385338087,1757784663162,-2928.66,0.00025479,3]
[385338088,1757784663172,-480.0,0.00025479,3]
[385338089,1757784663182,-480.0,0.00025479,3]
[385338090,1757784663192,-273.76662306,0.00025479,3]
[385338091,1757784663201,-480.0,0.00025479,3]
[385338092,1757784663211,-739.76,0.00025479,3]
[385338093,1757784663221,-370.742226,0.00025479,3]
[385338094,1757784663231,-703.37,0.00025479,3]
[385338095,1757784663240,-480.0,0.00025479,3]
[385338096,1757784663250,-480.0,0.00025479,3]
[385338097,1757784663260,-734.71,0.00025479,3]
[385338098,1757784663270,-2535.32,0.00025479,3]
[385338099,1757784663280,-12427.82,0.00025479,3]
[385338100,1757784663289,-480.0,0.00025479,3]
[385338101,1757784663299,-480.0,0.00025479,3]
[385338102,1757784663309,-480.0,0.00025479,3]
[385338103,1757784663319,-8887.01,0.00025479,3]
[385338104,1757784663328,-883.08,0.00025479,3]
[385338105,1757784663339,-480.0,0.00025479,3]
[385338106,1757784663348,-776.87,0.00025479,3]
[385338107,1757784663358,-641.35,0.00025479,3]
[385338108,1757784663368,-1110.66,0.00025479,3]
[385338109,1757784663378,-5775.0,0.00025479,3]
[385338110,1757784663388,-581.72169038,0.00025479,3]
[385338111,1757784663397,-999.54,0.00025479,3]
[385338112,1757784663407,-480.0,0.00025479,3]
[385338113,1757784663417,-2448.94,0.00025479,3]
[385338114,1757784663427,-480.0,0.00025479,3]
[385338115,1757784663439,-595.92,0.00025479,3]
[385338116,1757784663448,-711.92,0.00025479,3]
[385338117,1757784663458,-480.0,0.00025479,3]
[385338118,1757784663467,-2079.15,0.00025479,3]
[385338119,1757784663478,-716.9,0.00025479,3]
[385338120,1757784663487,-680.55,0.00025479,3]
[385338121,1757784663496,-2057.52,0.00025479,3]
[385338122,1757784663506,-509.1,0.00025479,3]
[385338123,1757784663515,-1722.0,0.00025479,3]
[385338124,1757784663525,-1005.55,0.00025479,3]
[385338125,1757784663535,-480.0,0.00025479,3]
[385338126,1757784663544,-340.58124665,0.00025479,3]
[385338127,1757784663554,-400.0,0.00025479,3]
[385338128,1757784663564,-728.93,0.00025479,3]
[385338129,1757784663574,-539.38835627,0.00025479,3]
[385338130,1757784663585,-1072.93,0.00025479,3]
[385338131,1757784663594,-480.0,0.00025479,3]
[385338132,1757784663604,-480.0,0.00025479,3]
[385338133,1757784663614,-872.34,0.00025479,3]
[385338134,1757784663624,-480.0,0.00025479,3]
[385338135,1757784663634,-1840.85,0.00025479,3]
[385338136,1757784663643,-480.0,0.00025479,3]
[385338137,1757784663653,-480.0,0.00025479,3]
[385338138,1757784663663,-480.0,0.00025479,3]
[385338139,1757784663672,-480.0,0.00025479,3]
[385338140,1757784663681,-1340.83,0.00025479,3]
[385338141,1757784663691,-1088.54,0.00025479,3]
[385338142,1757784663700,-480.0,0.00025479,3]
[385338143,1757784663710,-797.91,0.00025479,3]
[385338144,1757784663720,-500.0,0.0002548,2]
[385338145,1757784663731,-168.0,0.00025494,2]
[385338146,1757784663741,-168.0,0.00025497,2]
[385338147,1757784663750,-200.0,0.00025515,2]
[385338148,1757784663760,-300.0,0.00025521,2]
[385338149,1757784663770,-250.0,0.00025521,2]
[385338150,1757784663780,-4153.12121851,0.0002559,2]
[385338151,1757784663789,-160.0,0.00025604,2]
[385338152,1757784663799,-500.0,0.00025676,9]
[385338153,1757784663809,-168.0,0.00025683,2]
[385338154,1757784663819,-500.0,0.00025698,9]
[385338155,1757784663828,-978.52,0.000257,7]
[385338156,1757784663840,-2234.07,0.000257,7]
[385338157,1757784663849,-31699.09,0.000257,7]
[385338158,1757784663858,-168.0,0.00025731,2]
[385338159,1757784663869,-500.0,0.00025753,5]
[385338160,1757784663879,-500.0,0.00025753,5]
[385338161,1757784663888,-500.0,0.00025753,5]
[385338162,1757784663900,-582.0,0.00025753,3]
[385338163,1757784663910,-480.0,0.00025753,3]
[385338164,1757784663919,-657.11,0.00025753,3]
[385338165,1757784663929,-480.0,0.00025753,3]
[385338166,1757784663939,-480.0,0.00025753,3]
[385338167,1757784663949,-480.0,0.00025753,3]
[385338168,1757784663959,-480.0,0.00025753,3]
[385338169,1757784663968,-480.0,0.00025753,3]
[385338170,1757784663980,-480.0,0.00025753,3]
[385338171,1757784663991,-480.0,0.00025753,3]
[385338172,1757784664001,-522.82,0.00025753,3]
[385338173,1757784664012,-480.0,0.00025753,3]
[385338174,1757784664022,-588.93,0.00025753,3]
[385338175,1757784664034,-480.0,0.00025753,3]
[385338176,1757784664047,-480.0,0.00025753,3]
[385338177,1757784664059,-480.0,0.00025753,3]
[385338178,1757784664069,-480.0,0.00025753,3]
[385338179,1757784664082,-480.0,0.00025753,3]
[385338180,1757784664093,-480.0,0.00025753,3]
[385338181,1757784664103,-480.0,0.00025753,3]
[385338182,1757784664113,-362.05731825,0.00025753,3]
[385338183,1757784664123,-480.0,0.00025753,3]
[385338184,1757784664135,-705.76,0.00025753,3]
[385338185,1757784664146,-602.39,0.00025753,3]
[385338186,1757784664156,-596.77723403,0.00025753,3]
[385338187,1757784664167,-588.09395965,0.00025753,3]
[385338188,1757784664176,-480.0,0.00025753,3]
[385338189,1757784664186,-480.0,0.00025753,3]
[385338190,1757784664196,-480.0,0.00025753,3]
[385338191,1757784664205,-480.0,0.00025753,3]
[385338192,1757784664215,-480.0,0.00025753,3]
[385338193,1757784664225,-480.0,0.00025753,3]
[385338194,1757784664234,-480.0,0.00025753,3]
[385338195,1757784664244,-480.0,0.00025753,3]
[385338196,1757784664253,-480.0,0.00025753,3]
[385338197,1757784664263,-238.33,0.00025753,3]
[385338198,1757784664272,-480.0,0.00025753,3]
[385338199,1757784664282,-480.0,0.00025753,3]
[385338200,1757784664292,-1238.97,0.00025753,3]
[385338201,1757784664302,-480.0,0.00025753,3]
[385338202,1757784664311,-480.0,0.00025753,3]
[385338203,1757784664321,-572.86,0.00025753,3]
[385338204,1757784664334,-300.72910628,0.00025753,3]
[385338205,1757784664343,-909.21,0.00025753,3]
[385338206,1757784664353,-480.0,0.00025753,3]
[385338207,1757784664363,-750.5,0.00025753,3]
[385338208,1757784664373,-1047.05,0.00025753,3]
[385338209,1757784664382,-480.0,0.00025753,3]
[385338210,1757784664391,-480.0,0.00025753,3]
[385338211,1757784664401,-666.36,0.00025753,3]
[385338212,1757784664410,-480.0,0.00025753,3]
[385338213,1757784664420,-863.23,0.00025753,3]
[385338214,1757784664429,-480.0,0.00025753,3]
[385338215,1757784664438,-533.76110276,0.00025753,3]
[385338216,1757784664448,-480.0,0.00025753,3]
[385338217,1757784664457,-480.0,0.00025753,3]
[385338218,1757784664466,-501.19126606,0.00025753,3]
[385338219,1757784664475,-480.0,0.00025753,3]
[385338220,1757784664485,-480.0,0.00025753,3]
[385338221,1757784664495,-714.11,0.00025753,3]
[385338222,1757784664504,-480.0,0.00025753,3]
[385338223,1757784664513,-480.0,0.00025753,3]
[385338224,1757784664523,-480.0,0.00025753,3]
[385338225,1757784664532,-480.0,0.00025753,3]
[385338226,1757784664542,-480.0,0.00025753,3]
[385338227,1757784664552,-480.0,0.00025753,3]
[385338228,1757784664561,-480.0,0.00025753,3]
[385338229,1757784664571,-480.0,0.00025753,3]
[385338230,1757784664580,-480.0,0.00025753,3]
[385338231,1757784664591,-480.0,0.00025753,3]
[385338232,1757784664600,-480.0,0.00025753,3]